{"text_format":"1","workbook":"xlsx","n_sheets":5,"sheets":["Instructions"," Exposure Table","Sensitivity Table","Pre-vulnerability score","Reference Table"],"not_rendered":{"charts":0,"images":2,"macros":1,"external_links":0,"defined_names":30,"comments":0,"pivot_tables":0},"unopened":[],"bounds":{"document_bytes":16777216,"sheet_cells":100000,"rows_first":2000,"rows_last":500,"rows_between":2000,"halvings":0,"cell_chars":16384,"cell_head_chars":4096},"cells_cut":0,"cells_raw":0,"read":"whole","date_system":"1900"}

{"sheet":"Instructions","index":0,"n_rows":42,"n_cols":3,"rows_kept":42,"cut":false,"hidden":false,"merged":[]}
[]
[null,"Pre-vulnerability Assessment Tool"]
[null,"Click here ","for help in enabling macros.  "]
[]
[]
[]
[]
[]
[]
[]
[]
[]
[]
[]
[]
[]
[]
[]
[]
[]
[]
[]
[]
[]
[]
[]
[]
[]
[]
[]
[]
[]
["* Note that the ranking and pre-vulnerability tools have been kept separate deliberately: this is to avoid making the background programming too complex."]
[]
[null,"Enabling macros"]
[null,"For Excel 2007 and later:"]
[null,"1.  Click the Office home  button at  the top of the screen"]
[null,"2.  Select\" Excel Options\" at the bottom"]
[null,"3.  Click \"Trust Center\" in the left hand pane"]
[null,"4.  Click the \"Trust Center Settings at the bottom right hand side"]
[null,"5.  Click \"Macro Settings\" in the list on the left hand pane"]
[null,"6. Check the button \"Enable all macros\" and press OK. "]

{"sheet":" Exposure Table","index":1,"n_rows":31,"n_cols":24,"rows_kept":31,"cut":false,"hidden":false,"merged":[[29,1,29,23],[9,4,9,23],[2,2,2,15],[3,2,3,15],[4,2,4,15],[5,2,5,15],[6,2,6,15]]}
[null,"EXPOSURE TABLE"]
[]
[null,"N/A","Hazard is not relevant to the sector or crop"]
[null,"E3","Some not significant exposure expected"]
[null,"E2","Medium level exposure expected  affecting a medium to considerable area of the activity (or a medium to considerable number of the sector's facilities)"]
[null,"E1","Significant level exposure expected  affecting a considerable area of the activity (or a considerable number of the sector's facilities)"]
[null,"E0","Total area of the activity (or sector's facilities) widely and increasingly exposed to significant climate hazards"]
[]
[]
[null,null,null,null,"Enter the description of Hazard here"]
[null,"SG","Description","Unique reference","Example Hazard 1","Example Hazard 2","Example Hazard 3","Example Hazard 4","Example Hazard 5","Example Hazard 6","Example Hazard 7","Example Hazard 8","Example Hazard 9","Example Hazard 10","Example Hazard 11","Example Hazard 12","Example Hazard 13","Example Hazard 14","Example Hazard 15","Example Hazard 16","Example Hazard 17","Example Hazard 18","Example Hazard 19","Example Hazard 20"]
[]
[]
[]
[]
[]
[]
[]
[]
[]
[]
[]
[]
[]
[]
[]
[]
[]
[]
[]
[null," "]

{"sheet":"Sensitivity Table","index":2,"n_rows":11,"n_cols":24,"rows_kept":11,"cut":false,"hidden":false,"merged":[[9,4,9,23],[2,2,2,11],[3,2,3,11],[4,2,4,11],[5,2,5,11],[6,2,6,11]]}
[null,"SENSITIVITY TABLE"]
[]
[null,"N/A","No negative impact, or some positive impact (*)"]
[null,"S3","Small impact, with little or no effect on operation/ activity"]
[null,"S2","Operation/ activity may be negatively affected to a low or moderate extent"]
[null,"S1","Operation/ activity will be negatively affected to a large extent"]
[null,"S0","Operation/ activity will be fully disrupted"]
[]
[]
[null,null,null,null,"Enter the description of Hazard here"]
[null,{"$f":"' Exposure Table'!B11","v":"SG"},{"$f":"' Exposure Table'!C11","v":"Description"},{"$f":"' Exposure Table'!D11","v":"Unique reference"},"Example Hazard 1","Example Hazard 2","Example Hazard 3","Example Hazard 4","Example Hazard 5","Example Hazard 6","Example Hazard 7","Example Hazard 8","Example Hazard 9","Example Hazard 10","Example Hazard 11","Example Hazard 12","Example Hazard 13","Example Hazard 14","Example Hazard 15","Example Hazard 16","Example Hazard 17","Example Hazard 18","Example Hazard 19","Example Hazard 20"]

{"sheet":"Pre-vulnerability score","index":3,"n_rows":10,"n_cols":24,"rows_kept":10,"cut":false,"hidden":false,"merged":[[2,4,2,23]]}
[null,"PRE-VULNERABILITY ASSESSMENT"]
[]
[null,null,null,null,"Hazard Description"]
[null,"Sector/Crop ","Activity","Unique reference","Example Hazard 1","Example Hazard 2","Example Hazard 3","Example Hazard 4","Example Hazard 5","Example Hazard 6","Example Hazard 7","Example Hazard 8","Example Hazard 9","Example Hazard 10","Example Hazard 11","Example Hazard 12","Example Hazard 13","Example Hazard 14","Example Hazard 15","Example Hazard 16","Example Hazard 17","Example Hazard 18","Example Hazard 19","Example Hazard 20"]
[null,null,null,null,{"$f":"IFERROR(INDEX('Reference Table'!$B$3:$G$8,\nMATCH(INDEX(' Exposure Table'!$B$11:$X$24,MATCH($D5,' Exposure Table'!$D$11:$D$24,0),MATCH(E$4,' Exposure Table'!$B$11:$X$11,0)),'Reference Table'!$B$3:$B$8,0),\nMATCH(INDEX('Sensitivity Table'!$B$11:$X$25,MATCH($D5,'Sensitivity Table'!$D$11:$D$25,0),MATCH(E$4,'Sensitivity Table'!$B$11:$X$11,0)),'Reference Table'!$B$3:$G$3,0)\n),\"\")","v":""},{"$f":"IFERROR(INDEX('Reference Table'!$B$3:$G$8,\nMATCH(INDEX(' Exposure Table'!$B$11:$X$24,MATCH($D5,' Exposure Table'!$D$11:$D$24,0),MATCH(F$4,' Exposure Table'!$B$11:$X$11,0)),'Reference Table'!$B$3:$B$8,0),\nMATCH(INDEX('Sensitivity Table'!$B$11:$X$25,MATCH($D5,'Sensitivity Table'!$D$11:$D$25,0),MATCH(F$4,'Sensitivity Table'!$B$11:$X$11,0)),'Reference Table'!$B$3:$G$3,0)\n),\"\")","v":""},{"$f":"IFERROR(INDEX('Reference Table'!$B$3:$G$8,\nMATCH(INDEX(' Exposure Table'!$B$11:$X$24,MATCH($D5,' Exposure Table'!$D$11:$D$24,0),MATCH(G$4,' Exposure Table'!$B$11:$X$11,0)),'Reference Table'!$B$3:$B$8,0),\nMATCH(INDEX('Sensitivity Table'!$B$11:$X$25,MATCH($D5,'Sensitivity Table'!$D$11:$D$25,0),MATCH(G$4,'Sensitivity Table'!$B$11:$X$11,0)),'Reference Table'!$B$3:$G$3,0)\n),\"\")","v":""},{"$f":"IFERROR(INDEX('Reference Table'!$B$3:$G$8,\nMATCH(INDEX(' Exposure Table'!$B$11:$X$24,MATCH($D5,' Exposure Table'!$D$11:$D$24,0),MATCH(H$4,' Exposure Table'!$B$11:$X$11,0)),'Reference Table'!$B$3:$B$8,0),\nMATCH(INDEX('Sensitivity Table'!$B$11:$X$25,MATCH($D5,'Sensitivity Table'!$D$11:$D$25,0),MATCH(H$4,'Sensitivity Table'!$B$11:$X$11,0)),'Reference Table'!$B$3:$G$3,0)\n),\"\")","v":""},{"$f":"IFERROR(INDEX('Reference Table'!$B$3:$G$8,\nMATCH(INDEX(' Exposure Table'!$B$11:$X$24,MATCH($D5,' Exposure Table'!$D$11:$D$24,0),MATCH(I$4,' Exposure Table'!$B$11:$X$11,0)),'Reference Table'!$B$3:$B$8,0),\nMATCH(INDEX('Sensitivity Table'!$B$11:$X$25,MATCH($D5,'Sensitivity Table'!$D$11:$D$25,0),MATCH(I$4,'Sensitivity Table'!$B$11:$X$11,0)),'Reference Table'!$B$3:$G$3,0)\n),\"\")","v":""},{"$f":"IFERROR(INDEX('Reference Table'!$B$3:$G$8,\nMATCH(INDEX(' Exposure Table'!$B$11:$X$24,MATCH($D5,' Exposure Table'!$D$11:$D$24,0),MATCH(J$4,' Exposure Table'!$B$11:$X$11,0)),'Reference Table'!$B$3:$B$8,0),\nMATCH(INDEX('Sensitivity Table'!$B$11:$X$25,MATCH($D5,'Sensitivity Table'!$D$11:$D$25,0),MATCH(J$4,'Sensitivity Table'!$B$11:$X$11,0)),'Reference Table'!$B$3:$G$3,0)\n),\"\")","v":""},{"$f":"IFERROR(INDEX('Reference Table'!$B$3:$G$8,\nMATCH(INDEX(' Exposure Table'!$B$11:$X$24,MATCH($D5,' Exposure Table'!$D$11:$D$24,0),MATCH(K$4,' Exposure Table'!$B$11:$X$11,0)),'Reference Table'!$B$3:$B$8,0),\nMATCH(INDEX('Sensitivity Table'!$B$11:$X$25,MATCH($D5,'Sensitivity Table'!$D$11:$D$25,0),MATCH(K$4,'Sensitivity Table'!$B$11:$X$11,0)),'Reference Table'!$B$3:$G$3,0)\n),\"\")","v":""},{"$f":"IFERROR(INDEX('Reference Table'!$B$3:$G$8,\nMATCH(INDEX(' Exposure Table'!$B$11:$X$24,MATCH($D5,' Exposure Table'!$D$11:$D$24,0),MATCH(L$4,' Exposure Table'!$B$11:$X$11,0)),'Reference Table'!$B$3:$B$8,0),\nMATCH(INDEX('Sensitivity Table'!$B$11:$X$25,MATCH($D5,'Sensitivity Table'!$D$11:$D$25,0),MATCH(L$4,'Sensitivity Table'!$B$11:$X$11,0)),'Reference Table'!$B$3:$G$3,0)\n),\"\")","v":""},{"$f":"IFERROR(INDEX('Reference Table'!$B$3:$G$8,\nMATCH(INDEX(' Exposure Table'!$B$11:$X$24,MATCH($D5,' Exposure Table'!$D$11:$D$24,0),MATCH(M$4,' Exposure Table'!$B$11:$X$11,0)),'Reference Table'!$B$3:$B$8,0),\nMATCH(INDEX('Sensitivity Table'!$B$11:$X$25,MATCH($D5,'Sensitivity Table'!$D$11:$D$25,0),MATCH(M$4,'Sensitivity Table'!$B$11:$X$11,0)),'Reference Table'!$B$3:$G$3,0)\n),\"\")","v":""},{"$f":"IFERROR(INDEX('Reference Table'!$B$3:$G$8,\nMATCH(INDEX(' Exposure Table'!$B$11:$X$24,MATCH($D5,' Exposure Table'!$D$11:$D$24,0),MATCH(N$4,' Exposure Table'!$B$11:$X$11,0)),'Reference Table'!$B$3:$B$8,0),\nMATCH(INDEX('Sensitivity Table'!$B$11:$X$25,MATCH($D5,'Sensitivity Table'!$D$11:$D$25,0),MATCH(N$4,'Sensitivity Table'!$B$11:$X$11,0)),'Reference Table'!$B$3:$G$3,0)\n),\"\")","v":""},{"$f":"IFERROR(INDEX('Reference Table'!$B$3:$G$8,\nMATCH(INDEX(' Exposure Table'!$B$11:$X$24,MATCH($D5,' Exposure Table'!$D$11:$D$24,0),MATCH(O$4,' Exposure Table'!$B$11:$X$11,0)),'Reference Table'!$B$3:$B$8,0),\nMATCH(INDEX('Sensitivity Table'!$B$11:$X$25,MATCH($D5,'Sensitivity Table'!$D$11:$D$25,0),MATCH(O$4,'Sensitivity Table'!$B$11:$X$11,0)),'Reference Table'!$B$3:$G$3,0)\n),\"\")","v":""},{"$f":"IFERROR(INDEX('Reference Table'!$B$3:$G$8,\nMATCH(INDEX(' Exposure Table'!$B$11:$X$24,MATCH($D5,' Exposure Table'!$D$11:$D$24,0),MATCH(P$4,' Exposure Table'!$B$11:$X$11,0)),'Reference Table'!$B$3:$B$8,0),\nMATCH(INDEX('Sensitivity Table'!$B$11:$X$25,MATCH($D5,'Sensitivity Table'!$D$11:$D$25,0),MATCH(P$4,'Sensitivity Table'!$B$11:$X$11,0)),'Reference Table'!$B$3:$G$3,0)\n),\"\")","v":""},{"$f":"IFERROR(INDEX('Reference Table'!$B$3:$G$8,\nMATCH(INDEX(' Exposure Table'!$B$11:$X$24,MATCH($D5,' Exposure Table'!$D$11:$D$24,0),MATCH(Q$4,' Exposure Table'!$B$11:$X$11,0)),'Reference Table'!$B$3:$B$8,0),\nMATCH(INDEX('Sensitivity Table'!$B$11:$X$25,MATCH($D5,'Sensitivity Table'!$D$11:$D$25,0),MATCH(Q$4,'Sensitivity Table'!$B$11:$X$11,0)),'Reference Table'!$B$3:$G$3,0)\n),\"\")","v":""},{"$f":"IFERROR(INDEX('Reference Table'!$B$3:$G$8,\nMATCH(INDEX(' Exposure Table'!$B$11:$X$24,MATCH($D5,' Exposure Table'!$D$11:$D$24,0),MATCH(R$4,' Exposure Table'!$B$11:$X$11,0)),'Reference Table'!$B$3:$B$8,0),\nMATCH(INDEX('Sensitivity Table'!$B$11:$X$25,MATCH($D5,'Sensitivity Table'!$D$11:$D$25,0),MATCH(R$4,'Sensitivity Table'!$B$11:$X$11,0)),'Reference Table'!$B$3:$G$3,0)\n),\"\")","v":""},{"$f":"IFERROR(INDEX('Reference Table'!$B$3:$G$8,\nMATCH(INDEX(' Exposure Table'!$B$11:$X$24,MATCH($D5,' Exposure Table'!$D$11:$D$24,0),MATCH(S$4,' Exposure Table'!$B$11:$X$11,0)),'Reference Table'!$B$3:$B$8,0),\nMATCH(INDEX('Sensitivity Table'!$B$11:$X$25,MATCH($D5,'Sensitivity Table'!$D$11:$D$25,0),MATCH(S$4,'Sensitivity Table'!$B$11:$X$11,0)),'Reference Table'!$B$3:$G$3,0)\n),\"\")","v":""},{"$f":"IFERROR(INDEX('Reference Table'!$B$3:$G$8,\nMATCH(INDEX(' Exposure Table'!$B$11:$X$24,MATCH($D5,' Exposure Table'!$D$11:$D$24,0),MATCH(T$4,' Exposure Table'!$B$11:$X$11,0)),'Reference Table'!$B$3:$B$8,0),\nMATCH(INDEX('Sensitivity Table'!$B$11:$X$25,MATCH($D5,'Sensitivity Table'!$D$11:$D$25,0),MATCH(T$4,'Sensitivity Table'!$B$11:$X$11,0)),'Reference Table'!$B$3:$G$3,0)\n),\"\")","v":""},{"$f":"IFERROR(INDEX('Reference Table'!$B$3:$G$8,\nMATCH(INDEX(' Exposure Table'!$B$11:$X$24,MATCH($D5,' Exposure Table'!$D$11:$D$24,0),MATCH(U$4,' Exposure Table'!$B$11:$X$11,0)),'Reference Table'!$B$3:$B$8,0),\nMATCH(INDEX('Sensitivity Table'!$B$11:$X$25,MATCH($D5,'Sensitivity Table'!$D$11:$D$25,0),MATCH(U$4,'Sensitivity Table'!$B$11:$X$11,0)),'Reference Table'!$B$3:$G$3,0)\n),\"\")","v":""},{"$f":"IFERROR(INDEX('Reference Table'!$B$3:$G$8,\nMATCH(INDEX(' Exposure Table'!$B$11:$X$24,MATCH($D5,' Exposure Table'!$D$11:$D$24,0),MATCH(V$4,' Exposure Table'!$B$11:$X$11,0)),'Reference Table'!$B$3:$B$8,0),\nMATCH(INDEX('Sensitivity Table'!$B$11:$X$25,MATCH($D5,'Sensitivity Table'!$D$11:$D$25,0),MATCH(V$4,'Sensitivity Table'!$B$11:$X$11,0)),'Reference Table'!$B$3:$G$3,0)\n),\"\")","v":""},{"$f":"IFERROR(INDEX('Reference Table'!$B$3:$G$8,\nMATCH(INDEX(' Exposure Table'!$B$11:$X$24,MATCH($D5,' Exposure Table'!$D$11:$D$24,0),MATCH(W$4,' Exposure Table'!$B$11:$X$11,0)),'Reference Table'!$B$3:$B$8,0),\nMATCH(INDEX('Sensitivity Table'!$B$11:$X$25,MATCH($D5,'Sensitivity Table'!$D$11:$D$25,0),MATCH(W$4,'Sensitivity Table'!$B$11:$X$11,0)),'Reference Table'!$B$3:$G$3,0)\n),\"\")","v":""},{"$f":"IFERROR(INDEX('Reference Table'!$B$3:$G$8,\nMATCH(INDEX(' Exposure Table'!$B$11:$X$24,MATCH($D5,' Exposure Table'!$D$11:$D$24,0),MATCH(X$4,' Exposure Table'!$B$11:$X$11,0)),'Reference Table'!$B$3:$B$8,0),\nMATCH(INDEX('Sensitivity Table'!$B$11:$X$25,MATCH($D5,'Sensitivity Table'!$D$11:$D$25,0),MATCH(X$4,'Sensitivity Table'!$B$11:$X$11,0)),'Reference Table'!$B$3:$G$3,0)\n),\"\")","v":""}]
[null,null,null,null,{"$f":"IFERROR(INDEX('Reference Table'!$B$3:$G$8,\nMATCH(INDEX(' Exposure Table'!$B$11:$X$24,MATCH($D6,' Exposure Table'!$D$11:$D$24,0),MATCH(E$4,' Exposure Table'!$B$11:$X$11,0)),'Reference Table'!$B$3:$B$8,0),\nMATCH(INDEX('Sensitivity Table'!$B$11:$X$25,MATCH($D6,'Sensitivity Table'!$D$11:$D$25,0),MATCH(E$4,'Sensitivity Table'!$B$11:$X$11,0)),'Reference Table'!$B$3:$G$3,0)\n),\"\")","v":""},{"$f":"IFERROR(INDEX('Reference Table'!$B$3:$G$8,\nMATCH(INDEX(' Exposure Table'!$B$11:$X$24,MATCH($D6,' Exposure Table'!$D$11:$D$24,0),MATCH(F$4,' Exposure Table'!$B$11:$X$11,0)),'Reference Table'!$B$3:$B$8,0),\nMATCH(INDEX('Sensitivity Table'!$B$11:$X$25,MATCH($D6,'Sensitivity Table'!$D$11:$D$25,0),MATCH(F$4,'Sensitivity Table'!$B$11:$X$11,0)),'Reference Table'!$B$3:$G$3,0)\n),\"\")","v":""},{"$f":"IFERROR(INDEX('Reference Table'!$B$3:$G$8,\nMATCH(INDEX(' Exposure Table'!$B$11:$X$24,MATCH($D6,' Exposure Table'!$D$11:$D$24,0),MATCH(G$4,' Exposure Table'!$B$11:$X$11,0)),'Reference Table'!$B$3:$B$8,0),\nMATCH(INDEX('Sensitivity Table'!$B$11:$X$25,MATCH($D6,'Sensitivity Table'!$D$11:$D$25,0),MATCH(G$4,'Sensitivity Table'!$B$11:$X$11,0)),'Reference Table'!$B$3:$G$3,0)\n),\"\")","v":""},{"$f":"IFERROR(INDEX('Reference Table'!$B$3:$G$8,\nMATCH(INDEX(' Exposure Table'!$B$11:$X$24,MATCH($D6,' Exposure Table'!$D$11:$D$24,0),MATCH(H$4,' Exposure Table'!$B$11:$X$11,0)),'Reference Table'!$B$3:$B$8,0),\nMATCH(INDEX('Sensitivity Table'!$B$11:$X$25,MATCH($D6,'Sensitivity Table'!$D$11:$D$25,0),MATCH(H$4,'Sensitivity Table'!$B$11:$X$11,0)),'Reference Table'!$B$3:$G$3,0)\n),\"\")","v":""},{"$f":"IFERROR(INDEX('Reference Table'!$B$3:$G$8,\nMATCH(INDEX(' Exposure Table'!$B$11:$X$24,MATCH($D6,' Exposure Table'!$D$11:$D$24,0),MATCH(I$4,' Exposure Table'!$B$11:$X$11,0)),'Reference Table'!$B$3:$B$8,0),\nMATCH(INDEX('Sensitivity Table'!$B$11:$X$25,MATCH($D6,'Sensitivity Table'!$D$11:$D$25,0),MATCH(I$4,'Sensitivity Table'!$B$11:$X$11,0)),'Reference Table'!$B$3:$G$3,0)\n),\"\")","v":""},{"$f":"IFERROR(INDEX('Reference Table'!$B$3:$G$8,\nMATCH(INDEX(' Exposure Table'!$B$11:$X$24,MATCH($D6,' Exposure Table'!$D$11:$D$24,0),MATCH(J$4,' Exposure Table'!$B$11:$X$11,0)),'Reference Table'!$B$3:$B$8,0),\nMATCH(INDEX('Sensitivity Table'!$B$11:$X$25,MATCH($D6,'Sensitivity Table'!$D$11:$D$25,0),MATCH(J$4,'Sensitivity Table'!$B$11:$X$11,0)),'Reference Table'!$B$3:$G$3,0)\n),\"\")","v":""},{"$f":"IFERROR(INDEX('Reference Table'!$B$3:$G$8,\nMATCH(INDEX(' Exposure Table'!$B$11:$X$24,MATCH($D6,' Exposure Table'!$D$11:$D$24,0),MATCH(K$4,' Exposure Table'!$B$11:$X$11,0)),'Reference Table'!$B$3:$B$8,0),\nMATCH(INDEX('Sensitivity Table'!$B$11:$X$25,MATCH($D6,'Sensitivity Table'!$D$11:$D$25,0),MATCH(K$4,'Sensitivity Table'!$B$11:$X$11,0)),'Reference Table'!$B$3:$G$3,0)\n),\"\")","v":""},{"$f":"IFERROR(INDEX('Reference Table'!$B$3:$G$8,\nMATCH(INDEX(' Exposure Table'!$B$11:$X$24,MATCH($D6,' Exposure Table'!$D$11:$D$24,0),MATCH(L$4,' Exposure Table'!$B$11:$X$11,0)),'Reference Table'!$B$3:$B$8,0),\nMATCH(INDEX('Sensitivity Table'!$B$11:$X$25,MATCH($D6,'Sensitivity Table'!$D$11:$D$25,0),MATCH(L$4,'Sensitivity Table'!$B$11:$X$11,0)),'Reference Table'!$B$3:$G$3,0)\n),\"\")","v":""},{"$f":"IFERROR(INDEX('Reference Table'!$B$3:$G$8,\nMATCH(INDEX(' Exposure Table'!$B$11:$X$24,MATCH($D6,' Exposure Table'!$D$11:$D$24,0),MATCH(M$4,' Exposure Table'!$B$11:$X$11,0)),'Reference Table'!$B$3:$B$8,0),\nMATCH(INDEX('Sensitivity Table'!$B$11:$X$25,MATCH($D6,'Sensitivity Table'!$D$11:$D$25,0),MATCH(M$4,'Sensitivity Table'!$B$11:$X$11,0)),'Reference Table'!$B$3:$G$3,0)\n),\"\")","v":""},{"$f":"IFERROR(INDEX('Reference Table'!$B$3:$G$8,\nMATCH(INDEX(' Exposure Table'!$B$11:$X$24,MATCH($D6,' Exposure Table'!$D$11:$D$24,0),MATCH(N$4,' Exposure Table'!$B$11:$X$11,0)),'Reference Table'!$B$3:$B$8,0),\nMATCH(INDEX('Sensitivity Table'!$B$11:$X$25,MATCH($D6,'Sensitivity Table'!$D$11:$D$25,0),MATCH(N$4,'Sensitivity Table'!$B$11:$X$11,0)),'Reference Table'!$B$3:$G$3,0)\n),\"\")","v":""},{"$f":"IFERROR(INDEX('Reference Table'!$B$3:$G$8,\nMATCH(INDEX(' Exposure Table'!$B$11:$X$24,MATCH($D6,' Exposure Table'!$D$11:$D$24,0),MATCH(O$4,' Exposure Table'!$B$11:$X$11,0)),'Reference Table'!$B$3:$B$8,0),\nMATCH(INDEX('Sensitivity Table'!$B$11:$X$25,MATCH($D6,'Sensitivity Table'!$D$11:$D$25,0),MATCH(O$4,'Sensitivity Table'!$B$11:$X$11,0)),'Reference Table'!$B$3:$G$3,0)\n),\"\")","v":""},{"$f":"IFERROR(INDEX('Reference Table'!$B$3:$G$8,\nMATCH(INDEX(' Exposure Table'!$B$11:$X$24,MATCH($D6,' Exposure Table'!$D$11:$D$24,0),MATCH(P$4,' Exposure Table'!$B$11:$X$11,0)),'Reference Table'!$B$3:$B$8,0),\nMATCH(INDEX('Sensitivity Table'!$B$11:$X$25,MATCH($D6,'Sensitivity Table'!$D$11:$D$25,0),MATCH(P$4,'Sensitivity Table'!$B$11:$X$11,0)),'Reference Table'!$B$3:$G$3,0)\n),\"\")","v":""},{"$f":"IFERROR(INDEX('Reference Table'!$B$3:$G$8,\nMATCH(INDEX(' Exposure Table'!$B$11:$X$24,MATCH($D6,' Exposure Table'!$D$11:$D$24,0),MATCH(Q$4,' Exposure Table'!$B$11:$X$11,0)),'Reference Table'!$B$3:$B$8,0),\nMATCH(INDEX('Sensitivity Table'!$B$11:$X$25,MATCH($D6,'Sensitivity Table'!$D$11:$D$25,0),MATCH(Q$4,'Sensitivity Table'!$B$11:$X$11,0)),'Reference Table'!$B$3:$G$3,0)\n),\"\")","v":""},{"$f":"IFERROR(INDEX('Reference Table'!$B$3:$G$8,\nMATCH(INDEX(' Exposure Table'!$B$11:$X$24,MATCH($D6,' Exposure Table'!$D$11:$D$24,0),MATCH(R$4,' Exposure Table'!$B$11:$X$11,0)),'Reference Table'!$B$3:$B$8,0),\nMATCH(INDEX('Sensitivity Table'!$B$11:$X$25,MATCH($D6,'Sensitivity Table'!$D$11:$D$25,0),MATCH(R$4,'Sensitivity Table'!$B$11:$X$11,0)),'Reference Table'!$B$3:$G$3,0)\n),\"\")","v":""},{"$f":"IFERROR(INDEX('Reference Table'!$B$3:$G$8,\nMATCH(INDEX(' Exposure Table'!$B$11:$X$24,MATCH($D6,' Exposure Table'!$D$11:$D$24,0),MATCH(S$4,' Exposure Table'!$B$11:$X$11,0)),'Reference Table'!$B$3:$B$8,0),\nMATCH(INDEX('Sensitivity Table'!$B$11:$X$25,MATCH($D6,'Sensitivity Table'!$D$11:$D$25,0),MATCH(S$4,'Sensitivity Table'!$B$11:$X$11,0)),'Reference Table'!$B$3:$G$3,0)\n),\"\")","v":""},{"$f":"IFERROR(INDEX('Reference Table'!$B$3:$G$8,\nMATCH(INDEX(' Exposure Table'!$B$11:$X$24,MATCH($D6,' Exposure Table'!$D$11:$D$24,0),MATCH(T$4,' Exposure Table'!$B$11:$X$11,0)),'Reference Table'!$B$3:$B$8,0),\nMATCH(INDEX('Sensitivity Table'!$B$11:$X$25,MATCH($D6,'Sensitivity Table'!$D$11:$D$25,0),MATCH(T$4,'Sensitivity Table'!$B$11:$X$11,0)),'Reference Table'!$B$3:$G$3,0)\n),\"\")","v":""},{"$f":"IFERROR(INDEX('Reference Table'!$B$3:$G$8,\nMATCH(INDEX(' Exposure Table'!$B$11:$X$24,MATCH($D6,' Exposure Table'!$D$11:$D$24,0),MATCH(U$4,' Exposure Table'!$B$11:$X$11,0)),'Reference Table'!$B$3:$B$8,0),\nMATCH(INDEX('Sensitivity Table'!$B$11:$X$25,MATCH($D6,'Sensitivity Table'!$D$11:$D$25,0),MATCH(U$4,'Sensitivity Table'!$B$11:$X$11,0)),'Reference Table'!$B$3:$G$3,0)\n),\"\")","v":""},{"$f":"IFERROR(INDEX('Reference Table'!$B$3:$G$8,\nMATCH(INDEX(' Exposure Table'!$B$11:$X$24,MATCH($D6,' Exposure Table'!$D$11:$D$24,0),MATCH(V$4,' Exposure Table'!$B$11:$X$11,0)),'Reference Table'!$B$3:$B$8,0),\nMATCH(INDEX('Sensitivity Table'!$B$11:$X$25,MATCH($D6,'Sensitivity Table'!$D$11:$D$25,0),MATCH(V$4,'Sensitivity Table'!$B$11:$X$11,0)),'Reference Table'!$B$3:$G$3,0)\n),\"\")","v":""},{"$f":"IFERROR(INDEX('Reference Table'!$B$3:$G$8,\nMATCH(INDEX(' Exposure Table'!$B$11:$X$24,MATCH($D6,' Exposure Table'!$D$11:$D$24,0),MATCH(W$4,' Exposure Table'!$B$11:$X$11,0)),'Reference Table'!$B$3:$B$8,0),\nMATCH(INDEX('Sensitivity Table'!$B$11:$X$25,MATCH($D6,'Sensitivity Table'!$D$11:$D$25,0),MATCH(W$4,'Sensitivity Table'!$B$11:$X$11,0)),'Reference Table'!$B$3:$G$3,0)\n),\"\")","v":""},{"$f":"IFERROR(INDEX('Reference Table'!$B$3:$G$8,\nMATCH(INDEX(' Exposure Table'!$B$11:$X$24,MATCH($D6,' Exposure Table'!$D$11:$D$24,0),MATCH(X$4,' Exposure Table'!$B$11:$X$11,0)),'Reference Table'!$B$3:$B$8,0),\nMATCH(INDEX('Sensitivity Table'!$B$11:$X$25,MATCH($D6,'Sensitivity Table'!$D$11:$D$25,0),MATCH(X$4,'Sensitivity Table'!$B$11:$X$11,0)),'Reference Table'!$B$3:$G$3,0)\n),\"\")","v":""}]
[null,null,null,null,{"$f":"IFERROR(INDEX('Reference Table'!$B$3:$G$8,\nMATCH(INDEX(' Exposure Table'!$B$11:$X$24,MATCH($D7,' Exposure Table'!$D$11:$D$24,0),MATCH(E$4,' Exposure Table'!$B$11:$X$11,0)),'Reference Table'!$B$3:$B$8,0),\nMATCH(INDEX('Sensitivity Table'!$B$11:$X$25,MATCH($D7,'Sensitivity Table'!$D$11:$D$25,0),MATCH(E$4,'Sensitivity Table'!$B$11:$X$11,0)),'Reference Table'!$B$3:$G$3,0)\n),\"\")","v":""},{"$f":"IFERROR(INDEX('Reference Table'!$B$3:$G$8,\nMATCH(INDEX(' Exposure Table'!$B$11:$X$24,MATCH($D7,' Exposure Table'!$D$11:$D$24,0),MATCH(F$4,' Exposure Table'!$B$11:$X$11,0)),'Reference Table'!$B$3:$B$8,0),\nMATCH(INDEX('Sensitivity Table'!$B$11:$X$25,MATCH($D7,'Sensitivity Table'!$D$11:$D$25,0),MATCH(F$4,'Sensitivity Table'!$B$11:$X$11,0)),'Reference Table'!$B$3:$G$3,0)\n),\"\")","v":""},{"$f":"IFERROR(INDEX('Reference Table'!$B$3:$G$8,\nMATCH(INDEX(' Exposure Table'!$B$11:$X$24,MATCH($D7,' Exposure Table'!$D$11:$D$24,0),MATCH(G$4,' Exposure Table'!$B$11:$X$11,0)),'Reference Table'!$B$3:$B$8,0),\nMATCH(INDEX('Sensitivity Table'!$B$11:$X$25,MATCH($D7,'Sensitivity Table'!$D$11:$D$25,0),MATCH(G$4,'Sensitivity Table'!$B$11:$X$11,0)),'Reference Table'!$B$3:$G$3,0)\n),\"\")","v":""},{"$f":"IFERROR(INDEX('Reference Table'!$B$3:$G$8,\nMATCH(INDEX(' Exposure Table'!$B$11:$X$24,MATCH($D7,' Exposure Table'!$D$11:$D$24,0),MATCH(H$4,' Exposure Table'!$B$11:$X$11,0)),'Reference Table'!$B$3:$B$8,0),\nMATCH(INDEX('Sensitivity Table'!$B$11:$X$25,MATCH($D7,'Sensitivity Table'!$D$11:$D$25,0),MATCH(H$4,'Sensitivity Table'!$B$11:$X$11,0)),'Reference Table'!$B$3:$G$3,0)\n),\"\")","v":""},{"$f":"IFERROR(INDEX('Reference Table'!$B$3:$G$8,\nMATCH(INDEX(' Exposure Table'!$B$11:$X$24,MATCH($D7,' Exposure Table'!$D$11:$D$24,0),MATCH(I$4,' Exposure Table'!$B$11:$X$11,0)),'Reference Table'!$B$3:$B$8,0),\nMATCH(INDEX('Sensitivity Table'!$B$11:$X$25,MATCH($D7,'Sensitivity Table'!$D$11:$D$25,0),MATCH(I$4,'Sensitivity Table'!$B$11:$X$11,0)),'Reference Table'!$B$3:$G$3,0)\n),\"\")","v":""},{"$f":"IFERROR(INDEX('Reference Table'!$B$3:$G$8,\nMATCH(INDEX(' Exposure Table'!$B$11:$X$24,MATCH($D7,' Exposure Table'!$D$11:$D$24,0),MATCH(J$4,' Exposure Table'!$B$11:$X$11,0)),'Reference Table'!$B$3:$B$8,0),\nMATCH(INDEX('Sensitivity Table'!$B$11:$X$25,MATCH($D7,'Sensitivity Table'!$D$11:$D$25,0),MATCH(J$4,'Sensitivity Table'!$B$11:$X$11,0)),'Reference Table'!$B$3:$G$3,0)\n),\"\")","v":""},{"$f":"IFERROR(INDEX('Reference Table'!$B$3:$G$8,\nMATCH(INDEX(' Exposure Table'!$B$11:$X$24,MATCH($D7,' Exposure Table'!$D$11:$D$24,0),MATCH(K$4,' Exposure Table'!$B$11:$X$11,0)),'Reference Table'!$B$3:$B$8,0),\nMATCH(INDEX('Sensitivity Table'!$B$11:$X$25,MATCH($D7,'Sensitivity Table'!$D$11:$D$25,0),MATCH(K$4,'Sensitivity Table'!$B$11:$X$11,0)),'Reference Table'!$B$3:$G$3,0)\n),\"\")","v":""},{"$f":"IFERROR(INDEX('Reference Table'!$B$3:$G$8,\nMATCH(INDEX(' Exposure Table'!$B$11:$X$24,MATCH($D7,' Exposure Table'!$D$11:$D$24,0),MATCH(L$4,' Exposure Table'!$B$11:$X$11,0)),'Reference Table'!$B$3:$B$8,0),\nMATCH(INDEX('Sensitivity Table'!$B$11:$X$25,MATCH($D7,'Sensitivity Table'!$D$11:$D$25,0),MATCH(L$4,'Sensitivity Table'!$B$11:$X$11,0)),'Reference Table'!$B$3:$G$3,0)\n),\"\")","v":""},{"$f":"IFERROR(INDEX('Reference Table'!$B$3:$G$8,\nMATCH(INDEX(' Exposure Table'!$B$11:$X$24,MATCH($D7,' Exposure Table'!$D$11:$D$24,0),MATCH(M$4,' Exposure Table'!$B$11:$X$11,0)),'Reference Table'!$B$3:$B$8,0),\nMATCH(INDEX('Sensitivity Table'!$B$11:$X$25,MATCH($D7,'Sensitivity Table'!$D$11:$D$25,0),MATCH(M$4,'Sensitivity Table'!$B$11:$X$11,0)),'Reference Table'!$B$3:$G$3,0)\n),\"\")","v":""},{"$f":"IFERROR(INDEX('Reference Table'!$B$3:$G$8,\nMATCH(INDEX(' Exposure Table'!$B$11:$X$24,MATCH($D7,' Exposure Table'!$D$11:$D$24,0),MATCH(N$4,' Exposure Table'!$B$11:$X$11,0)),'Reference Table'!$B$3:$B$8,0),\nMATCH(INDEX('Sensitivity Table'!$B$11:$X$25,MATCH($D7,'Sensitivity Table'!$D$11:$D$25,0),MATCH(N$4,'Sensitivity Table'!$B$11:$X$11,0)),'Reference Table'!$B$3:$G$3,0)\n),\"\")","v":""},{"$f":"IFERROR(INDEX('Reference Table'!$B$3:$G$8,\nMATCH(INDEX(' Exposure Table'!$B$11:$X$24,MATCH($D7,' Exposure Table'!$D$11:$D$24,0),MATCH(O$4,' Exposure Table'!$B$11:$X$11,0)),'Reference Table'!$B$3:$B$8,0),\nMATCH(INDEX('Sensitivity Table'!$B$11:$X$25,MATCH($D7,'Sensitivity Table'!$D$11:$D$25,0),MATCH(O$4,'Sensitivity Table'!$B$11:$X$11,0)),'Reference Table'!$B$3:$G$3,0)\n),\"\")","v":""},{"$f":"IFERROR(INDEX('Reference Table'!$B$3:$G$8,\nMATCH(INDEX(' Exposure Table'!$B$11:$X$24,MATCH($D7,' Exposure Table'!$D$11:$D$24,0),MATCH(P$4,' Exposure Table'!$B$11:$X$11,0)),'Reference Table'!$B$3:$B$8,0),\nMATCH(INDEX('Sensitivity Table'!$B$11:$X$25,MATCH($D7,'Sensitivity Table'!$D$11:$D$25,0),MATCH(P$4,'Sensitivity Table'!$B$11:$X$11,0)),'Reference Table'!$B$3:$G$3,0)\n),\"\")","v":""},{"$f":"IFERROR(INDEX('Reference Table'!$B$3:$G$8,\nMATCH(INDEX(' Exposure Table'!$B$11:$X$24,MATCH($D7,' Exposure Table'!$D$11:$D$24,0),MATCH(Q$4,' Exposure Table'!$B$11:$X$11,0)),'Reference Table'!$B$3:$B$8,0),\nMATCH(INDEX('Sensitivity Table'!$B$11:$X$25,MATCH($D7,'Sensitivity Table'!$D$11:$D$25,0),MATCH(Q$4,'Sensitivity Table'!$B$11:$X$11,0)),'Reference Table'!$B$3:$G$3,0)\n),\"\")","v":""},{"$f":"IFERROR(INDEX('Reference Table'!$B$3:$G$8,\nMATCH(INDEX(' Exposure Table'!$B$11:$X$24,MATCH($D7,' Exposure Table'!$D$11:$D$24,0),MATCH(R$4,' Exposure Table'!$B$11:$X$11,0)),'Reference Table'!$B$3:$B$8,0),\nMATCH(INDEX('Sensitivity Table'!$B$11:$X$25,MATCH($D7,'Sensitivity Table'!$D$11:$D$25,0),MATCH(R$4,'Sensitivity Table'!$B$11:$X$11,0)),'Reference Table'!$B$3:$G$3,0)\n),\"\")","v":""},{"$f":"IFERROR(INDEX('Reference Table'!$B$3:$G$8,\nMATCH(INDEX(' Exposure Table'!$B$11:$X$24,MATCH($D7,' Exposure Table'!$D$11:$D$24,0),MATCH(S$4,' Exposure Table'!$B$11:$X$11,0)),'Reference Table'!$B$3:$B$8,0),\nMATCH(INDEX('Sensitivity Table'!$B$11:$X$25,MATCH($D7,'Sensitivity Table'!$D$11:$D$25,0),MATCH(S$4,'Sensitivity Table'!$B$11:$X$11,0)),'Reference Table'!$B$3:$G$3,0)\n),\"\")","v":""},{"$f":"IFERROR(INDEX('Reference Table'!$B$3:$G$8,\nMATCH(INDEX(' Exposure Table'!$B$11:$X$24,MATCH($D7,' Exposure Table'!$D$11:$D$24,0),MATCH(T$4,' Exposure Table'!$B$11:$X$11,0)),'Reference Table'!$B$3:$B$8,0),\nMATCH(INDEX('Sensitivity Table'!$B$11:$X$25,MATCH($D7,'Sensitivity Table'!$D$11:$D$25,0),MATCH(T$4,'Sensitivity Table'!$B$11:$X$11,0)),'Reference Table'!$B$3:$G$3,0)\n),\"\")","v":""},{"$f":"IFERROR(INDEX('Reference Table'!$B$3:$G$8,\nMATCH(INDEX(' Exposure Table'!$B$11:$X$24,MATCH($D7,' Exposure Table'!$D$11:$D$24,0),MATCH(U$4,' Exposure Table'!$B$11:$X$11,0)),'Reference Table'!$B$3:$B$8,0),\nMATCH(INDEX('Sensitivity Table'!$B$11:$X$25,MATCH($D7,'Sensitivity Table'!$D$11:$D$25,0),MATCH(U$4,'Sensitivity Table'!$B$11:$X$11,0)),'Reference Table'!$B$3:$G$3,0)\n),\"\")","v":""},{"$f":"IFERROR(INDEX('Reference Table'!$B$3:$G$8,\nMATCH(INDEX(' Exposure Table'!$B$11:$X$24,MATCH($D7,' Exposure Table'!$D$11:$D$24,0),MATCH(V$4,' Exposure Table'!$B$11:$X$11,0)),'Reference Table'!$B$3:$B$8,0),\nMATCH(INDEX('Sensitivity Table'!$B$11:$X$25,MATCH($D7,'Sensitivity Table'!$D$11:$D$25,0),MATCH(V$4,'Sensitivity Table'!$B$11:$X$11,0)),'Reference Table'!$B$3:$G$3,0)\n),\"\")","v":""},{"$f":"IFERROR(INDEX('Reference Table'!$B$3:$G$8,\nMATCH(INDEX(' Exposure Table'!$B$11:$X$24,MATCH($D7,' Exposure Table'!$D$11:$D$24,0),MATCH(W$4,' Exposure Table'!$B$11:$X$11,0)),'Reference Table'!$B$3:$B$8,0),\nMATCH(INDEX('Sensitivity Table'!$B$11:$X$25,MATCH($D7,'Sensitivity Table'!$D$11:$D$25,0),MATCH(W$4,'Sensitivity Table'!$B$11:$X$11,0)),'Reference Table'!$B$3:$G$3,0)\n),\"\")","v":""},{"$f":"IFERROR(INDEX('Reference Table'!$B$3:$G$8,\nMATCH(INDEX(' Exposure Table'!$B$11:$X$24,MATCH($D7,' Exposure Table'!$D$11:$D$24,0),MATCH(X$4,' Exposure Table'!$B$11:$X$11,0)),'Reference Table'!$B$3:$B$8,0),\nMATCH(INDEX('Sensitivity Table'!$B$11:$X$25,MATCH($D7,'Sensitivity Table'!$D$11:$D$25,0),MATCH(X$4,'Sensitivity Table'!$B$11:$X$11,0)),'Reference Table'!$B$3:$G$3,0)\n),\"\")","v":""}]
[null,null,null,null,{"$f":"IFERROR(INDEX('Reference Table'!$B$3:$G$8,\nMATCH(INDEX(' Exposure Table'!$B$11:$X$24,MATCH($D8,' Exposure Table'!$D$11:$D$24,0),MATCH(E$4,' Exposure Table'!$B$11:$X$11,0)),'Reference Table'!$B$3:$B$8,0),\nMATCH(INDEX('Sensitivity Table'!$B$11:$X$25,MATCH($D8,'Sensitivity Table'!$D$11:$D$25,0),MATCH(E$4,'Sensitivity Table'!$B$11:$X$11,0)),'Reference Table'!$B$3:$G$3,0)\n),\"\")","v":""},{"$f":"IFERROR(INDEX('Reference Table'!$B$3:$G$8,\nMATCH(INDEX(' Exposure Table'!$B$11:$X$24,MATCH($D8,' Exposure Table'!$D$11:$D$24,0),MATCH(F$4,' Exposure Table'!$B$11:$X$11,0)),'Reference Table'!$B$3:$B$8,0),\nMATCH(INDEX('Sensitivity Table'!$B$11:$X$25,MATCH($D8,'Sensitivity Table'!$D$11:$D$25,0),MATCH(F$4,'Sensitivity Table'!$B$11:$X$11,0)),'Reference Table'!$B$3:$G$3,0)\n),\"\")","v":""},{"$f":"IFERROR(INDEX('Reference Table'!$B$3:$G$8,\nMATCH(INDEX(' Exposure Table'!$B$11:$X$24,MATCH($D8,' Exposure Table'!$D$11:$D$24,0),MATCH(G$4,' Exposure Table'!$B$11:$X$11,0)),'Reference Table'!$B$3:$B$8,0),\nMATCH(INDEX('Sensitivity Table'!$B$11:$X$25,MATCH($D8,'Sensitivity Table'!$D$11:$D$25,0),MATCH(G$4,'Sensitivity Table'!$B$11:$X$11,0)),'Reference Table'!$B$3:$G$3,0)\n),\"\")","v":""},{"$f":"IFERROR(INDEX('Reference Table'!$B$3:$G$8,\nMATCH(INDEX(' Exposure Table'!$B$11:$X$24,MATCH($D8,' Exposure Table'!$D$11:$D$24,0),MATCH(H$4,' Exposure Table'!$B$11:$X$11,0)),'Reference Table'!$B$3:$B$8,0),\nMATCH(INDEX('Sensitivity Table'!$B$11:$X$25,MATCH($D8,'Sensitivity Table'!$D$11:$D$25,0),MATCH(H$4,'Sensitivity Table'!$B$11:$X$11,0)),'Reference Table'!$B$3:$G$3,0)\n),\"\")","v":""},{"$f":"IFERROR(INDEX('Reference Table'!$B$3:$G$8,\nMATCH(INDEX(' Exposure Table'!$B$11:$X$24,MATCH($D8,' Exposure Table'!$D$11:$D$24,0),MATCH(I$4,' Exposure Table'!$B$11:$X$11,0)),'Reference Table'!$B$3:$B$8,0),\nMATCH(INDEX('Sensitivity Table'!$B$11:$X$25,MATCH($D8,'Sensitivity Table'!$D$11:$D$25,0),MATCH(I$4,'Sensitivity Table'!$B$11:$X$11,0)),'Reference Table'!$B$3:$G$3,0)\n),\"\")","v":""},{"$f":"IFERROR(INDEX('Reference Table'!$B$3:$G$8,\nMATCH(INDEX(' Exposure Table'!$B$11:$X$24,MATCH($D8,' Exposure Table'!$D$11:$D$24,0),MATCH(J$4,' Exposure Table'!$B$11:$X$11,0)),'Reference Table'!$B$3:$B$8,0),\nMATCH(INDEX('Sensitivity Table'!$B$11:$X$25,MATCH($D8,'Sensitivity Table'!$D$11:$D$25,0),MATCH(J$4,'Sensitivity Table'!$B$11:$X$11,0)),'Reference Table'!$B$3:$G$3,0)\n),\"\")","v":""},{"$f":"IFERROR(INDEX('Reference Table'!$B$3:$G$8,\nMATCH(INDEX(' Exposure Table'!$B$11:$X$24,MATCH($D8,' Exposure Table'!$D$11:$D$24,0),MATCH(K$4,' Exposure Table'!$B$11:$X$11,0)),'Reference Table'!$B$3:$B$8,0),\nMATCH(INDEX('Sensitivity Table'!$B$11:$X$25,MATCH($D8,'Sensitivity Table'!$D$11:$D$25,0),MATCH(K$4,'Sensitivity Table'!$B$11:$X$11,0)),'Reference Table'!$B$3:$G$3,0)\n),\"\")","v":""},{"$f":"IFERROR(INDEX('Reference Table'!$B$3:$G$8,\nMATCH(INDEX(' Exposure Table'!$B$11:$X$24,MATCH($D8,' Exposure Table'!$D$11:$D$24,0),MATCH(L$4,' Exposure Table'!$B$11:$X$11,0)),'Reference Table'!$B$3:$B$8,0),\nMATCH(INDEX('Sensitivity Table'!$B$11:$X$25,MATCH($D8,'Sensitivity Table'!$D$11:$D$25,0),MATCH(L$4,'Sensitivity Table'!$B$11:$X$11,0)),'Reference Table'!$B$3:$G$3,0)\n),\"\")","v":""},{"$f":"IFERROR(INDEX('Reference Table'!$B$3:$G$8,\nMATCH(INDEX(' Exposure Table'!$B$11:$X$24,MATCH($D8,' Exposure Table'!$D$11:$D$24,0),MATCH(M$4,' Exposure Table'!$B$11:$X$11,0)),'Reference Table'!$B$3:$B$8,0),\nMATCH(INDEX('Sensitivity Table'!$B$11:$X$25,MATCH($D8,'Sensitivity Table'!$D$11:$D$25,0),MATCH(M$4,'Sensitivity Table'!$B$11:$X$11,0)),'Reference Table'!$B$3:$G$3,0)\n),\"\")","v":""},{"$f":"IFERROR(INDEX('Reference Table'!$B$3:$G$8,\nMATCH(INDEX(' Exposure Table'!$B$11:$X$24,MATCH($D8,' Exposure Table'!$D$11:$D$24,0),MATCH(N$4,' Exposure Table'!$B$11:$X$11,0)),'Reference Table'!$B$3:$B$8,0),\nMATCH(INDEX('Sensitivity Table'!$B$11:$X$25,MATCH($D8,'Sensitivity Table'!$D$11:$D$25,0),MATCH(N$4,'Sensitivity Table'!$B$11:$X$11,0)),'Reference Table'!$B$3:$G$3,0)\n),\"\")","v":""},{"$f":"IFERROR(INDEX('Reference Table'!$B$3:$G$8,\nMATCH(INDEX(' Exposure Table'!$B$11:$X$24,MATCH($D8,' Exposure Table'!$D$11:$D$24,0),MATCH(O$4,' Exposure Table'!$B$11:$X$11,0)),'Reference Table'!$B$3:$B$8,0),\nMATCH(INDEX('Sensitivity Table'!$B$11:$X$25,MATCH($D8,'Sensitivity Table'!$D$11:$D$25,0),MATCH(O$4,'Sensitivity Table'!$B$11:$X$11,0)),'Reference Table'!$B$3:$G$3,0)\n),\"\")","v":""},{"$f":"IFERROR(INDEX('Reference Table'!$B$3:$G$8,\nMATCH(INDEX(' Exposure Table'!$B$11:$X$24,MATCH($D8,' Exposure Table'!$D$11:$D$24,0),MATCH(P$4,' Exposure Table'!$B$11:$X$11,0)),'Reference Table'!$B$3:$B$8,0),\nMATCH(INDEX('Sensitivity Table'!$B$11:$X$25,MATCH($D8,'Sensitivity Table'!$D$11:$D$25,0),MATCH(P$4,'Sensitivity Table'!$B$11:$X$11,0)),'Reference Table'!$B$3:$G$3,0)\n),\"\")","v":""},{"$f":"IFERROR(INDEX('Reference Table'!$B$3:$G$8,\nMATCH(INDEX(' Exposure Table'!$B$11:$X$24,MATCH($D8,' Exposure Table'!$D$11:$D$24,0),MATCH(Q$4,' Exposure Table'!$B$11:$X$11,0)),'Reference Table'!$B$3:$B$8,0),\nMATCH(INDEX('Sensitivity Table'!$B$11:$X$25,MATCH($D8,'Sensitivity Table'!$D$11:$D$25,0),MATCH(Q$4,'Sensitivity Table'!$B$11:$X$11,0)),'Reference Table'!$B$3:$G$3,0)\n),\"\")","v":""},{"$f":"IFERROR(INDEX('Reference Table'!$B$3:$G$8,\nMATCH(INDEX(' Exposure Table'!$B$11:$X$24,MATCH($D8,' Exposure Table'!$D$11:$D$24,0),MATCH(R$4,' Exposure Table'!$B$11:$X$11,0)),'Reference Table'!$B$3:$B$8,0),\nMATCH(INDEX('Sensitivity Table'!$B$11:$X$25,MATCH($D8,'Sensitivity Table'!$D$11:$D$25,0),MATCH(R$4,'Sensitivity Table'!$B$11:$X$11,0)),'Reference Table'!$B$3:$G$3,0)\n),\"\")","v":""},{"$f":"IFERROR(INDEX('Reference Table'!$B$3:$G$8,\nMATCH(INDEX(' Exposure Table'!$B$11:$X$24,MATCH($D8,' Exposure Table'!$D$11:$D$24,0),MATCH(S$4,' Exposure Table'!$B$11:$X$11,0)),'Reference Table'!$B$3:$B$8,0),\nMATCH(INDEX('Sensitivity Table'!$B$11:$X$25,MATCH($D8,'Sensitivity Table'!$D$11:$D$25,0),MATCH(S$4,'Sensitivity Table'!$B$11:$X$11,0)),'Reference Table'!$B$3:$G$3,0)\n),\"\")","v":""},{"$f":"IFERROR(INDEX('Reference Table'!$B$3:$G$8,\nMATCH(INDEX(' Exposure Table'!$B$11:$X$24,MATCH($D8,' Exposure Table'!$D$11:$D$24,0),MATCH(T$4,' Exposure Table'!$B$11:$X$11,0)),'Reference Table'!$B$3:$B$8,0),\nMATCH(INDEX('Sensitivity Table'!$B$11:$X$25,MATCH($D8,'Sensitivity Table'!$D$11:$D$25,0),MATCH(T$4,'Sensitivity Table'!$B$11:$X$11,0)),'Reference Table'!$B$3:$G$3,0)\n),\"\")","v":""},{"$f":"IFERROR(INDEX('Reference Table'!$B$3:$G$8,\nMATCH(INDEX(' Exposure Table'!$B$11:$X$24,MATCH($D8,' Exposure Table'!$D$11:$D$24,0),MATCH(U$4,' Exposure Table'!$B$11:$X$11,0)),'Reference Table'!$B$3:$B$8,0),\nMATCH(INDEX('Sensitivity Table'!$B$11:$X$25,MATCH($D8,'Sensitivity Table'!$D$11:$D$25,0),MATCH(U$4,'Sensitivity Table'!$B$11:$X$11,0)),'Reference Table'!$B$3:$G$3,0)\n),\"\")","v":""},{"$f":"IFERROR(INDEX('Reference Table'!$B$3:$G$8,\nMATCH(INDEX(' Exposure Table'!$B$11:$X$24,MATCH($D8,' Exposure Table'!$D$11:$D$24,0),MATCH(V$4,' Exposure Table'!$B$11:$X$11,0)),'Reference Table'!$B$3:$B$8,0),\nMATCH(INDEX('Sensitivity Table'!$B$11:$X$25,MATCH($D8,'Sensitivity Table'!$D$11:$D$25,0),MATCH(V$4,'Sensitivity Table'!$B$11:$X$11,0)),'Reference Table'!$B$3:$G$3,0)\n),\"\")","v":""},{"$f":"IFERROR(INDEX('Reference Table'!$B$3:$G$8,\nMATCH(INDEX(' Exposure Table'!$B$11:$X$24,MATCH($D8,' Exposure Table'!$D$11:$D$24,0),MATCH(W$4,' Exposure Table'!$B$11:$X$11,0)),'Reference Table'!$B$3:$B$8,0),\nMATCH(INDEX('Sensitivity Table'!$B$11:$X$25,MATCH($D8,'Sensitivity Table'!$D$11:$D$25,0),MATCH(W$4,'Sensitivity Table'!$B$11:$X$11,0)),'Reference Table'!$B$3:$G$3,0)\n),\"\")","v":""},{"$f":"IFERROR(INDEX('Reference Table'!$B$3:$G$8,\nMATCH(INDEX(' Exposure Table'!$B$11:$X$24,MATCH($D8,' Exposure Table'!$D$11:$D$24,0),MATCH(X$4,' Exposure Table'!$B$11:$X$11,0)),'Reference Table'!$B$3:$B$8,0),\nMATCH(INDEX('Sensitivity Table'!$B$11:$X$25,MATCH($D8,'Sensitivity Table'!$D$11:$D$25,0),MATCH(X$4,'Sensitivity Table'!$B$11:$X$11,0)),'Reference Table'!$B$3:$G$3,0)\n),\"\")","v":""}]
[null,null,null,null,{"$f":"IFERROR(INDEX('Reference Table'!$B$3:$G$8,\nMATCH(INDEX(' Exposure Table'!$B$11:$X$24,MATCH($D9,' Exposure Table'!$D$11:$D$24,0),MATCH(E$4,' Exposure Table'!$B$11:$X$11,0)),'Reference Table'!$B$3:$B$8,0),\nMATCH(INDEX('Sensitivity Table'!$B$11:$X$25,MATCH($D9,'Sensitivity Table'!$D$11:$D$25,0),MATCH(E$4,'Sensitivity Table'!$B$11:$X$11,0)),'Reference Table'!$B$3:$G$3,0)\n),\"\")","v":""},{"$f":"IFERROR(INDEX('Reference Table'!$B$3:$G$8,\nMATCH(INDEX(' Exposure Table'!$B$11:$X$24,MATCH($D9,' Exposure Table'!$D$11:$D$24,0),MATCH(F$4,' Exposure Table'!$B$11:$X$11,0)),'Reference Table'!$B$3:$B$8,0),\nMATCH(INDEX('Sensitivity Table'!$B$11:$X$25,MATCH($D9,'Sensitivity Table'!$D$11:$D$25,0),MATCH(F$4,'Sensitivity Table'!$B$11:$X$11,0)),'Reference Table'!$B$3:$G$3,0)\n),\"\")","v":""},{"$f":"IFERROR(INDEX('Reference Table'!$B$3:$G$8,\nMATCH(INDEX(' Exposure Table'!$B$11:$X$24,MATCH($D9,' Exposure Table'!$D$11:$D$24,0),MATCH(G$4,' Exposure Table'!$B$11:$X$11,0)),'Reference Table'!$B$3:$B$8,0),\nMATCH(INDEX('Sensitivity Table'!$B$11:$X$25,MATCH($D9,'Sensitivity Table'!$D$11:$D$25,0),MATCH(G$4,'Sensitivity Table'!$B$11:$X$11,0)),'Reference Table'!$B$3:$G$3,0)\n),\"\")","v":""},{"$f":"IFERROR(INDEX('Reference Table'!$B$3:$G$8,\nMATCH(INDEX(' Exposure Table'!$B$11:$X$24,MATCH($D9,' Exposure Table'!$D$11:$D$24,0),MATCH(H$4,' Exposure Table'!$B$11:$X$11,0)),'Reference Table'!$B$3:$B$8,0),\nMATCH(INDEX('Sensitivity Table'!$B$11:$X$25,MATCH($D9,'Sensitivity Table'!$D$11:$D$25,0),MATCH(H$4,'Sensitivity Table'!$B$11:$X$11,0)),'Reference Table'!$B$3:$G$3,0)\n),\"\")","v":""},{"$f":"IFERROR(INDEX('Reference Table'!$B$3:$G$8,\nMATCH(INDEX(' Exposure Table'!$B$11:$X$24,MATCH($D9,' Exposure Table'!$D$11:$D$24,0),MATCH(I$4,' Exposure Table'!$B$11:$X$11,0)),'Reference Table'!$B$3:$B$8,0),\nMATCH(INDEX('Sensitivity Table'!$B$11:$X$25,MATCH($D9,'Sensitivity Table'!$D$11:$D$25,0),MATCH(I$4,'Sensitivity Table'!$B$11:$X$11,0)),'Reference Table'!$B$3:$G$3,0)\n),\"\")","v":""},{"$f":"IFERROR(INDEX('Reference Table'!$B$3:$G$8,\nMATCH(INDEX(' Exposure Table'!$B$11:$X$24,MATCH($D9,' Exposure Table'!$D$11:$D$24,0),MATCH(J$4,' Exposure Table'!$B$11:$X$11,0)),'Reference Table'!$B$3:$B$8,0),\nMATCH(INDEX('Sensitivity Table'!$B$11:$X$25,MATCH($D9,'Sensitivity Table'!$D$11:$D$25,0),MATCH(J$4,'Sensitivity Table'!$B$11:$X$11,0)),'Reference Table'!$B$3:$G$3,0)\n),\"\")","v":""},{"$f":"IFERROR(INDEX('Reference Table'!$B$3:$G$8,\nMATCH(INDEX(' Exposure Table'!$B$11:$X$24,MATCH($D9,' Exposure Table'!$D$11:$D$24,0),MATCH(K$4,' Exposure Table'!$B$11:$X$11,0)),'Reference Table'!$B$3:$B$8,0),\nMATCH(INDEX('Sensitivity Table'!$B$11:$X$25,MATCH($D9,'Sensitivity Table'!$D$11:$D$25,0),MATCH(K$4,'Sensitivity Table'!$B$11:$X$11,0)),'Reference Table'!$B$3:$G$3,0)\n),\"\")","v":""},{"$f":"IFERROR(INDEX('Reference Table'!$B$3:$G$8,\nMATCH(INDEX(' Exposure Table'!$B$11:$X$24,MATCH($D9,' Exposure Table'!$D$11:$D$24,0),MATCH(L$4,' Exposure Table'!$B$11:$X$11,0)),'Reference Table'!$B$3:$B$8,0),\nMATCH(INDEX('Sensitivity Table'!$B$11:$X$25,MATCH($D9,'Sensitivity Table'!$D$11:$D$25,0),MATCH(L$4,'Sensitivity Table'!$B$11:$X$11,0)),'Reference Table'!$B$3:$G$3,0)\n),\"\")","v":""},{"$f":"IFERROR(INDEX('Reference Table'!$B$3:$G$8,\nMATCH(INDEX(' Exposure Table'!$B$11:$X$24,MATCH($D9,' Exposure Table'!$D$11:$D$24,0),MATCH(M$4,' Exposure Table'!$B$11:$X$11,0)),'Reference Table'!$B$3:$B$8,0),\nMATCH(INDEX('Sensitivity Table'!$B$11:$X$25,MATCH($D9,'Sensitivity Table'!$D$11:$D$25,0),MATCH(M$4,'Sensitivity Table'!$B$11:$X$11,0)),'Reference Table'!$B$3:$G$3,0)\n),\"\")","v":""},{"$f":"IFERROR(INDEX('Reference Table'!$B$3:$G$8,\nMATCH(INDEX(' Exposure Table'!$B$11:$X$24,MATCH($D9,' Exposure Table'!$D$11:$D$24,0),MATCH(N$4,' Exposure Table'!$B$11:$X$11,0)),'Reference Table'!$B$3:$B$8,0),\nMATCH(INDEX('Sensitivity Table'!$B$11:$X$25,MATCH($D9,'Sensitivity Table'!$D$11:$D$25,0),MATCH(N$4,'Sensitivity Table'!$B$11:$X$11,0)),'Reference Table'!$B$3:$G$3,0)\n),\"\")","v":""},{"$f":"IFERROR(INDEX('Reference Table'!$B$3:$G$8,\nMATCH(INDEX(' Exposure Table'!$B$11:$X$24,MATCH($D9,' Exposure Table'!$D$11:$D$24,0),MATCH(O$4,' Exposure Table'!$B$11:$X$11,0)),'Reference Table'!$B$3:$B$8,0),\nMATCH(INDEX('Sensitivity Table'!$B$11:$X$25,MATCH($D9,'Sensitivity Table'!$D$11:$D$25,0),MATCH(O$4,'Sensitivity Table'!$B$11:$X$11,0)),'Reference Table'!$B$3:$G$3,0)\n),\"\")","v":""},{"$f":"IFERROR(INDEX('Reference Table'!$B$3:$G$8,\nMATCH(INDEX(' Exposure Table'!$B$11:$X$24,MATCH($D9,' Exposure Table'!$D$11:$D$24,0),MATCH(P$4,' Exposure Table'!$B$11:$X$11,0)),'Reference Table'!$B$3:$B$8,0),\nMATCH(INDEX('Sensitivity Table'!$B$11:$X$25,MATCH($D9,'Sensitivity Table'!$D$11:$D$25,0),MATCH(P$4,'Sensitivity Table'!$B$11:$X$11,0)),'Reference Table'!$B$3:$G$3,0)\n),\"\")","v":""},{"$f":"IFERROR(INDEX('Reference Table'!$B$3:$G$8,\nMATCH(INDEX(' Exposure Table'!$B$11:$X$24,MATCH($D9,' Exposure Table'!$D$11:$D$24,0),MATCH(Q$4,' Exposure Table'!$B$11:$X$11,0)),'Reference Table'!$B$3:$B$8,0),\nMATCH(INDEX('Sensitivity Table'!$B$11:$X$25,MATCH($D9,'Sensitivity Table'!$D$11:$D$25,0),MATCH(Q$4,'Sensitivity Table'!$B$11:$X$11,0)),'Reference Table'!$B$3:$G$3,0)\n),\"\")","v":""},{"$f":"IFERROR(INDEX('Reference Table'!$B$3:$G$8,\nMATCH(INDEX(' Exposure Table'!$B$11:$X$24,MATCH($D9,' Exposure Table'!$D$11:$D$24,0),MATCH(R$4,' Exposure Table'!$B$11:$X$11,0)),'Reference Table'!$B$3:$B$8,0),\nMATCH(INDEX('Sensitivity Table'!$B$11:$X$25,MATCH($D9,'Sensitivity Table'!$D$11:$D$25,0),MATCH(R$4,'Sensitivity Table'!$B$11:$X$11,0)),'Reference Table'!$B$3:$G$3,0)\n),\"\")","v":""},{"$f":"IFERROR(INDEX('Reference Table'!$B$3:$G$8,\nMATCH(INDEX(' Exposure Table'!$B$11:$X$24,MATCH($D9,' Exposure Table'!$D$11:$D$24,0),MATCH(S$4,' Exposure Table'!$B$11:$X$11,0)),'Reference Table'!$B$3:$B$8,0),\nMATCH(INDEX('Sensitivity Table'!$B$11:$X$25,MATCH($D9,'Sensitivity Table'!$D$11:$D$25,0),MATCH(S$4,'Sensitivity Table'!$B$11:$X$11,0)),'Reference Table'!$B$3:$G$3,0)\n),\"\")","v":""},{"$f":"IFERROR(INDEX('Reference Table'!$B$3:$G$8,\nMATCH(INDEX(' Exposure Table'!$B$11:$X$24,MATCH($D9,' Exposure Table'!$D$11:$D$24,0),MATCH(T$4,' Exposure Table'!$B$11:$X$11,0)),'Reference Table'!$B$3:$B$8,0),\nMATCH(INDEX('Sensitivity Table'!$B$11:$X$25,MATCH($D9,'Sensitivity Table'!$D$11:$D$25,0),MATCH(T$4,'Sensitivity Table'!$B$11:$X$11,0)),'Reference Table'!$B$3:$G$3,0)\n),\"\")","v":""},{"$f":"IFERROR(INDEX('Reference Table'!$B$3:$G$8,\nMATCH(INDEX(' Exposure Table'!$B$11:$X$24,MATCH($D9,' Exposure Table'!$D$11:$D$24,0),MATCH(U$4,' Exposure Table'!$B$11:$X$11,0)),'Reference Table'!$B$3:$B$8,0),\nMATCH(INDEX('Sensitivity Table'!$B$11:$X$25,MATCH($D9,'Sensitivity Table'!$D$11:$D$25,0),MATCH(U$4,'Sensitivity Table'!$B$11:$X$11,0)),'Reference Table'!$B$3:$G$3,0)\n),\"\")","v":""},{"$f":"IFERROR(INDEX('Reference Table'!$B$3:$G$8,\nMATCH(INDEX(' Exposure Table'!$B$11:$X$24,MATCH($D9,' Exposure Table'!$D$11:$D$24,0),MATCH(V$4,' Exposure Table'!$B$11:$X$11,0)),'Reference Table'!$B$3:$B$8,0),\nMATCH(INDEX('Sensitivity Table'!$B$11:$X$25,MATCH($D9,'Sensitivity Table'!$D$11:$D$25,0),MATCH(V$4,'Sensitivity Table'!$B$11:$X$11,0)),'Reference Table'!$B$3:$G$3,0)\n),\"\")","v":""},{"$f":"IFERROR(INDEX('Reference Table'!$B$3:$G$8,\nMATCH(INDEX(' Exposure Table'!$B$11:$X$24,MATCH($D9,' Exposure Table'!$D$11:$D$24,0),MATCH(W$4,' Exposure Table'!$B$11:$X$11,0)),'Reference Table'!$B$3:$B$8,0),\nMATCH(INDEX('Sensitivity Table'!$B$11:$X$25,MATCH($D9,'Sensitivity Table'!$D$11:$D$25,0),MATCH(W$4,'Sensitivity Table'!$B$11:$X$11,0)),'Reference Table'!$B$3:$G$3,0)\n),\"\")","v":""},{"$f":"IFERROR(INDEX('Reference Table'!$B$3:$G$8,\nMATCH(INDEX(' Exposure Table'!$B$11:$X$24,MATCH($D9,' Exposure Table'!$D$11:$D$24,0),MATCH(X$4,' Exposure Table'!$B$11:$X$11,0)),'Reference Table'!$B$3:$B$8,0),\nMATCH(INDEX('Sensitivity Table'!$B$11:$X$25,MATCH($D9,'Sensitivity Table'!$D$11:$D$25,0),MATCH(X$4,'Sensitivity Table'!$B$11:$X$11,0)),'Reference Table'!$B$3:$G$3,0)\n),\"\")","v":""}]
[null,null,null,null,{"$f":"IFERROR(INDEX('Reference Table'!$B$3:$G$8,\nMATCH(INDEX(' Exposure Table'!$B$11:$X$24,MATCH($D10,' Exposure Table'!$D$11:$D$24,0),MATCH(E$4,' Exposure Table'!$B$11:$X$11,0)),'Reference Table'!$B$3:$B$8,0),\nMATCH(INDEX('Sensitivity Table'!$B$11:$X$25,MATCH($D10,'Sensitivity Table'!$D$11:$D$25,0),MATCH(E$4,'Sensitivity Table'!$B$11:$X$11,0)),'Reference Table'!$B$3:$G$3,0)\n),\"\")","v":""},{"$f":"IFERROR(INDEX('Reference Table'!$B$3:$G$8,\nMATCH(INDEX(' Exposure Table'!$B$11:$X$24,MATCH($D10,' Exposure Table'!$D$11:$D$24,0),MATCH(F$4,' Exposure Table'!$B$11:$X$11,0)),'Reference Table'!$B$3:$B$8,0),\nMATCH(INDEX('Sensitivity Table'!$B$11:$X$25,MATCH($D10,'Sensitivity Table'!$D$11:$D$25,0),MATCH(F$4,'Sensitivity Table'!$B$11:$X$11,0)),'Reference Table'!$B$3:$G$3,0)\n),\"\")","v":""},{"$f":"IFERROR(INDEX('Reference Table'!$B$3:$G$8,\nMATCH(INDEX(' Exposure Table'!$B$11:$X$24,MATCH($D10,' Exposure Table'!$D$11:$D$24,0),MATCH(G$4,' Exposure Table'!$B$11:$X$11,0)),'Reference Table'!$B$3:$B$8,0),\nMATCH(INDEX('Sensitivity Table'!$B$11:$X$25,MATCH($D10,'Sensitivity Table'!$D$11:$D$25,0),MATCH(G$4,'Sensitivity Table'!$B$11:$X$11,0)),'Reference Table'!$B$3:$G$3,0)\n),\"\")","v":""},{"$f":"IFERROR(INDEX('Reference Table'!$B$3:$G$8,\nMATCH(INDEX(' Exposure Table'!$B$11:$X$24,MATCH($D10,' Exposure Table'!$D$11:$D$24,0),MATCH(H$4,' Exposure Table'!$B$11:$X$11,0)),'Reference Table'!$B$3:$B$8,0),\nMATCH(INDEX('Sensitivity Table'!$B$11:$X$25,MATCH($D10,'Sensitivity Table'!$D$11:$D$25,0),MATCH(H$4,'Sensitivity Table'!$B$11:$X$11,0)),'Reference Table'!$B$3:$G$3,0)\n),\"\")","v":""},{"$f":"IFERROR(INDEX('Reference Table'!$B$3:$G$8,\nMATCH(INDEX(' Exposure Table'!$B$11:$X$24,MATCH($D10,' Exposure Table'!$D$11:$D$24,0),MATCH(I$4,' Exposure Table'!$B$11:$X$11,0)),'Reference Table'!$B$3:$B$8,0),\nMATCH(INDEX('Sensitivity Table'!$B$11:$X$25,MATCH($D10,'Sensitivity Table'!$D$11:$D$25,0),MATCH(I$4,'Sensitivity Table'!$B$11:$X$11,0)),'Reference Table'!$B$3:$G$3,0)\n),\"\")","v":""},{"$f":"IFERROR(INDEX('Reference Table'!$B$3:$G$8,\nMATCH(INDEX(' Exposure Table'!$B$11:$X$24,MATCH($D10,' Exposure Table'!$D$11:$D$24,0),MATCH(J$4,' Exposure Table'!$B$11:$X$11,0)),'Reference Table'!$B$3:$B$8,0),\nMATCH(INDEX('Sensitivity Table'!$B$11:$X$25,MATCH($D10,'Sensitivity Table'!$D$11:$D$25,0),MATCH(J$4,'Sensitivity Table'!$B$11:$X$11,0)),'Reference Table'!$B$3:$G$3,0)\n),\"\")","v":""},{"$f":"IFERROR(INDEX('Reference Table'!$B$3:$G$8,\nMATCH(INDEX(' Exposure Table'!$B$11:$X$24,MATCH($D10,' Exposure Table'!$D$11:$D$24,0),MATCH(K$4,' Exposure Table'!$B$11:$X$11,0)),'Reference Table'!$B$3:$B$8,0),\nMATCH(INDEX('Sensitivity Table'!$B$11:$X$25,MATCH($D10,'Sensitivity Table'!$D$11:$D$25,0),MATCH(K$4,'Sensitivity Table'!$B$11:$X$11,0)),'Reference Table'!$B$3:$G$3,0)\n),\"\")","v":""},{"$f":"IFERROR(INDEX('Reference Table'!$B$3:$G$8,\nMATCH(INDEX(' Exposure Table'!$B$11:$X$24,MATCH($D10,' Exposure Table'!$D$11:$D$24,0),MATCH(L$4,' Exposure Table'!$B$11:$X$11,0)),'Reference Table'!$B$3:$B$8,0),\nMATCH(INDEX('Sensitivity Table'!$B$11:$X$25,MATCH($D10,'Sensitivity Table'!$D$11:$D$25,0),MATCH(L$4,'Sensitivity Table'!$B$11:$X$11,0)),'Reference Table'!$B$3:$G$3,0)\n),\"\")","v":""},{"$f":"IFERROR(INDEX('Reference Table'!$B$3:$G$8,\nMATCH(INDEX(' Exposure Table'!$B$11:$X$24,MATCH($D10,' Exposure Table'!$D$11:$D$24,0),MATCH(M$4,' Exposure Table'!$B$11:$X$11,0)),'Reference Table'!$B$3:$B$8,0),\nMATCH(INDEX('Sensitivity Table'!$B$11:$X$25,MATCH($D10,'Sensitivity Table'!$D$11:$D$25,0),MATCH(M$4,'Sensitivity Table'!$B$11:$X$11,0)),'Reference Table'!$B$3:$G$3,0)\n),\"\")","v":""},{"$f":"IFERROR(INDEX('Reference Table'!$B$3:$G$8,\nMATCH(INDEX(' Exposure Table'!$B$11:$X$24,MATCH($D10,' Exposure Table'!$D$11:$D$24,0),MATCH(N$4,' Exposure Table'!$B$11:$X$11,0)),'Reference Table'!$B$3:$B$8,0),\nMATCH(INDEX('Sensitivity Table'!$B$11:$X$25,MATCH($D10,'Sensitivity Table'!$D$11:$D$25,0),MATCH(N$4,'Sensitivity Table'!$B$11:$X$11,0)),'Reference Table'!$B$3:$G$3,0)\n),\"\")","v":""},{"$f":"IFERROR(INDEX('Reference Table'!$B$3:$G$8,\nMATCH(INDEX(' Exposure Table'!$B$11:$X$24,MATCH($D10,' Exposure Table'!$D$11:$D$24,0),MATCH(O$4,' Exposure Table'!$B$11:$X$11,0)),'Reference Table'!$B$3:$B$8,0),\nMATCH(INDEX('Sensitivity Table'!$B$11:$X$25,MATCH($D10,'Sensitivity Table'!$D$11:$D$25,0),MATCH(O$4,'Sensitivity Table'!$B$11:$X$11,0)),'Reference Table'!$B$3:$G$3,0)\n),\"\")","v":""},{"$f":"IFERROR(INDEX('Reference Table'!$B$3:$G$8,\nMATCH(INDEX(' Exposure Table'!$B$11:$X$24,MATCH($D10,' Exposure Table'!$D$11:$D$24,0),MATCH(P$4,' Exposure Table'!$B$11:$X$11,0)),'Reference Table'!$B$3:$B$8,0),\nMATCH(INDEX('Sensitivity Table'!$B$11:$X$25,MATCH($D10,'Sensitivity Table'!$D$11:$D$25,0),MATCH(P$4,'Sensitivity Table'!$B$11:$X$11,0)),'Reference Table'!$B$3:$G$3,0)\n),\"\")","v":""},{"$f":"IFERROR(INDEX('Reference Table'!$B$3:$G$8,\nMATCH(INDEX(' Exposure Table'!$B$11:$X$24,MATCH($D10,' Exposure Table'!$D$11:$D$24,0),MATCH(Q$4,' Exposure Table'!$B$11:$X$11,0)),'Reference Table'!$B$3:$B$8,0),\nMATCH(INDEX('Sensitivity Table'!$B$11:$X$25,MATCH($D10,'Sensitivity Table'!$D$11:$D$25,0),MATCH(Q$4,'Sensitivity Table'!$B$11:$X$11,0)),'Reference Table'!$B$3:$G$3,0)\n),\"\")","v":""},{"$f":"IFERROR(INDEX('Reference Table'!$B$3:$G$8,\nMATCH(INDEX(' Exposure Table'!$B$11:$X$24,MATCH($D10,' Exposure Table'!$D$11:$D$24,0),MATCH(R$4,' Exposure Table'!$B$11:$X$11,0)),'Reference Table'!$B$3:$B$8,0),\nMATCH(INDEX('Sensitivity Table'!$B$11:$X$25,MATCH($D10,'Sensitivity Table'!$D$11:$D$25,0),MATCH(R$4,'Sensitivity Table'!$B$11:$X$11,0)),'Reference Table'!$B$3:$G$3,0)\n),\"\")","v":""},{"$f":"IFERROR(INDEX('Reference Table'!$B$3:$G$8,\nMATCH(INDEX(' Exposure Table'!$B$11:$X$24,MATCH($D10,' Exposure Table'!$D$11:$D$24,0),MATCH(S$4,' Exposure Table'!$B$11:$X$11,0)),'Reference Table'!$B$3:$B$8,0),\nMATCH(INDEX('Sensitivity Table'!$B$11:$X$25,MATCH($D10,'Sensitivity Table'!$D$11:$D$25,0),MATCH(S$4,'Sensitivity Table'!$B$11:$X$11,0)),'Reference Table'!$B$3:$G$3,0)\n),\"\")","v":""},{"$f":"IFERROR(INDEX('Reference Table'!$B$3:$G$8,\nMATCH(INDEX(' Exposure Table'!$B$11:$X$24,MATCH($D10,' Exposure Table'!$D$11:$D$24,0),MATCH(T$4,' Exposure Table'!$B$11:$X$11,0)),'Reference Table'!$B$3:$B$8,0),\nMATCH(INDEX('Sensitivity Table'!$B$11:$X$25,MATCH($D10,'Sensitivity Table'!$D$11:$D$25,0),MATCH(T$4,'Sensitivity Table'!$B$11:$X$11,0)),'Reference Table'!$B$3:$G$3,0)\n),\"\")","v":""},{"$f":"IFERROR(INDEX('Reference Table'!$B$3:$G$8,\nMATCH(INDEX(' Exposure Table'!$B$11:$X$24,MATCH($D10,' Exposure Table'!$D$11:$D$24,0),MATCH(U$4,' Exposure Table'!$B$11:$X$11,0)),'Reference Table'!$B$3:$B$8,0),\nMATCH(INDEX('Sensitivity Table'!$B$11:$X$25,MATCH($D10,'Sensitivity Table'!$D$11:$D$25,0),MATCH(U$4,'Sensitivity Table'!$B$11:$X$11,0)),'Reference Table'!$B$3:$G$3,0)\n),\"\")","v":""},{"$f":"IFERROR(INDEX('Reference Table'!$B$3:$G$8,\nMATCH(INDEX(' Exposure Table'!$B$11:$X$24,MATCH($D10,' Exposure Table'!$D$11:$D$24,0),MATCH(V$4,' Exposure Table'!$B$11:$X$11,0)),'Reference Table'!$B$3:$B$8,0),\nMATCH(INDEX('Sensitivity Table'!$B$11:$X$25,MATCH($D10,'Sensitivity Table'!$D$11:$D$25,0),MATCH(V$4,'Sensitivity Table'!$B$11:$X$11,0)),'Reference Table'!$B$3:$G$3,0)\n),\"\")","v":""},{"$f":"IFERROR(INDEX('Reference Table'!$B$3:$G$8,\nMATCH(INDEX(' Exposure Table'!$B$11:$X$24,MATCH($D10,' Exposure Table'!$D$11:$D$24,0),MATCH(W$4,' Exposure Table'!$B$11:$X$11,0)),'Reference Table'!$B$3:$B$8,0),\nMATCH(INDEX('Sensitivity Table'!$B$11:$X$25,MATCH($D10,'Sensitivity Table'!$D$11:$D$25,0),MATCH(W$4,'Sensitivity Table'!$B$11:$X$11,0)),'Reference Table'!$B$3:$G$3,0)\n),\"\")","v":""},{"$f":"IFERROR(INDEX('Reference Table'!$B$3:$G$8,\nMATCH(INDEX(' Exposure Table'!$B$11:$X$24,MATCH($D10,' Exposure Table'!$D$11:$D$24,0),MATCH(X$4,' Exposure Table'!$B$11:$X$11,0)),'Reference Table'!$B$3:$B$8,0),\nMATCH(INDEX('Sensitivity Table'!$B$11:$X$25,MATCH($D10,'Sensitivity Table'!$D$11:$D$25,0),MATCH(X$4,'Sensitivity Table'!$B$11:$X$11,0)),'Reference Table'!$B$3:$G$3,0)\n),\"\")","v":""}]

{"sheet":"Reference Table","index":4,"n_rows":8,"n_cols":7,"rows_kept":8,"cut":false,"hidden":false,"merged":[]}
[]
[]
[null,null,"S3","S2","S1","S0","N/A"]
[null,"E3",3,3,2,2,"N/A"]
[null,"E2",3,2,1,1,"N/A"]
[null,"E1",2,2,1,0,"N/A"]
[null,"E0",2,1,0,0,"N/A"]
[null,"N/A","N/A","N/A","N/A","N/A","N/A"]